fUST/lending_fUST_20250718
["ID","MTS","AMOUNT","RATE_DAILY","PERIOD"]
[372863837,1752783046805,-460.0,0.00017085,2]
[372863838,1752783046814,-460.0,0.00017085,2]
[372863839,1752783046823,-460.0,0.00017086,2]
[372863841,1752783046834,-460.0,0.00017086,2]
[372863842,1752783046843,-460.0,0.00017086,2]
[372863843,1752783046857,-460.0,0.00017086,2]
[372863844,1752783046867,-460.0,0.00017086,2]
[372863845,1752783046878,-460.0,0.00017086,2]
[372863846,1752783046887,-282.35505076,0.00017086,2]
[372863847,1752783046897,-460.0,0.00017086,2]
[372863848,1752783046906,-460.0,0.00017086,2]
[372863849,1752783046915,-500.0,0.00017086,2]
[372863850,1752783046925,-500.0,0.00017089,2]
[372863851,1752783046934,-500.0,0.00017176,2]
[372863852,1752783046944,-460.0,0.00017356,2]
[372863853,1752783046954,-791.06,0.00017356,2]
[372863854,1752783046964,-932.7,0.00017356,2]
[372863855,1752783046973,-460.0,0.00017356,2]
[372863856,1752783046983,-460.0,0.00017356,2]
[372863857,1752783046992,-514.11,0.00017356,2]
[372863858,1752783047002,-460.0,0.00017356,2]
[372863859,1752783047012,-460.0,0.00017356,2]
[372863860,1752783047021,-460.0,0.00017356,2]
[372863861,1752783047031,-460.0,0.00017356,2]
[372863862,1752783047041,-460.0,0.00017356,2]
[372863864,1752783047050,-460.0,0.00017357,2]
[372863866,1752783047060,-460.0,0.00017357,2]
[372863868,1752783047069,-460.0,0.00017357,2]
[372863869,1752783047079,-460.0,0.00017357,2]
[372863871,1752783047088,-460.0,0.00017357,2]
[372863873,1752783047102,-460.0,0.00017357,2]
[372863876,1752783047112,-460.0,0.00017357,2]
[372863877,1752783047122,-460.0,0.00017357,2]
[372863878,1752783047132,-460.0,0.00017357,2]
[372863880,1752783047142,-744.42,0.00017357,2]
[372863882,1752783047152,-460.0,0.00017357,2]
[372863884,1752783047162,-460.0,0.00017357,2]
[372863886,1752783047172,-460.0,0.00017357,2]
[372863888,1752783047182,-460.0,0.00017357,2]
[372863890,1752783047192,-460.0,0.00017357,2]
[372863892,1752783047201,-172.26,0.00017357,2]
[372863894,1752783047210,-460.0,0.00017357,2]
[372863896,1752783047220,-460.0,0.00017357,2]
[372863898,1752783047229,-592.57,0.00017358,2]
[372863900,1752783047238,-460.0,0.00017358,2]
[372863902,1752783047248,-460.0,0.00017358,2]
[372863904,1752783047257,-500.0,0.00017358,2]
[372863906,1752783047267,-460.0,0.00017358,2]
[372863908,1752783047276,-1085.64,0.00017358,2]
[372863910,1752783047286,-505.45,0.00017358,2]
[372863912,1752783047295,-728.0,0.00017359,2]
[372863914,1752783047304,-500.0,0.00017359,2]
[372863916,1752783047314,-428.51895986,0.00017359,2]
[372863918,1752783047324,-460.0,0.00017359,2]
[372863920,1752783047333,-460.0,0.00017359,2]
[372863922,1752783047342,-460.0,0.00017359,2]
[372863924,1752783047356,-460.0,0.00017359,2]
[372863926,1752783047366,-460.0,0.00017359,2]
[372863928,1752783047376,-460.0,0.00017359,2]
[372863930,1752783047385,-450.53971998,0.00017359,2]
[372863932,1752783047395,-508.61,0.00017359,2]
[372863934,1752783047404,-460.0,0.00017359,2]
[372863936,1752783047414,-460.0,0.00017359,2]
[372863939,1752783047425,-460.0,0.00017359,2]
[372863941,1752783047436,-460.0,0.00017359,2]
[372863942,1752783047445,-460.0,0.00017359,2]
[372863945,1752783047456,-971.13,0.00017359,2]
[372863947,1752783047466,-251.28663926,0.00017359,2]
[372863949,1752783047475,-460.0,0.00017359,2]
[372863951,1752783047485,-460.0,0.00017359,2]
[372863952,1752783047495,-460.0,0.00017359,2]
[372863955,1752783047504,-460.0,0.00017359,2]
[372863957,1752783047514,-460.0,0.0001736,2]
[372863959,1752783047523,-460.0,0.0001736,2]
[372863961,1752783047532,-460.0,0.0001736,2]
[372863962,1752783047541,-316.89227968,0.0001736,2]
[372863965,1752783047551,-500.0,0.0001736,2]
[372863966,1752783047559,-500.0,0.00017421,2]
[372863968,1752783047569,-3676.68350827,0.0001753,2]
[372863970,1752783047578,-460.0,0.0001763,2]
[372863971,1752783047588,-791.06,0.0001763,2]
[372863973,1752783047600,-932.7,0.0001763,2]
[372863975,1752783047609,-460.0,0.0001763,2]
[372863977,1752783047618,-460.0,0.0001763,2]
[372863979,1752783047628,-514.11,0.0001763,2]
[372863981,1752783047637,-460.0,0.0001763,2]
[372863983,1752783047646,-460.0,0.0001763,2]
[372863985,1752783047655,-460.0,0.0001763,2]
[372863987,1752783047665,-460.0,0.0001763,2]
[372863989,1752783047675,-460.0,0.0001763,2]
[372863991,1752783047685,-4604.68636043,0.00017631,2]
[372863993,1752783047694,-460.0,0.00017631,2]
[372863995,1752783047703,-460.0,0.00017631,2]
[372863997,1752783047713,-460.0,0.00017631,2]
[372863999,1752783047722,-460.0,0.00017631,2]
[372864001,1752783047732,-460.0,0.00017631,2]
[372864003,1752783047741,-460.0,0.00017631,2]
[372864005,1752783047750,-460.0,0.00017631,2]
[372864007,1752783047759,-460.0,0.00017631,2]
[372864009,1752783047770,-744.42,0.00017631,2]
[372864011,1752783047780,-500.0,0.00017631,2]
[372864013,1752783047793,-460.0,0.00017631,2]
[372864015,1752783047802,-460.0,0.00017631,2]
[372864017,1752783047811,-460.0,0.00017631,2]
[372864019,1752783047820,-460.0,0.00017631,2]
[372864021,1752783047830,-475.7,0.00017631,2]
[372864023,1752783047839,-460.0,0.00017631,2]
[372864025,1752783047849,-592.57,0.00017632,2]
[372864027,1752783047859,-460.0,0.00017632,2]
[372864029,1752783047869,-460.0,0.00017632,2]
[372864031,1752783047879,-460.0,0.00017632,2]
[372864033,1752783047889,-1085.64,0.00017632,2]
[372864035,1752783047899,-505.45,0.00017632,2]
[372864037,1752783047909,-728.0,0.00017633,2]
[372864039,1752783047918,-500.0,0.00017633,2]
[372864041,1752783047929,-255.91943252,0.00017633,2]
[372864043,1752783047939,-460.0,0.00017633,2]
[372864045,1752783047948,-185.57574987,0.00017633,2]
[372864047,1752783047958,-410.18038512,0.00017633,2]
[372864049,1752783047967,-500.0,0.00017633,2]
[372864051,1752783047977,-508.61,0.00017633,2]
[372864053,1752783047986,-460.0,0.00017633,2]
[372864055,1752783047995,-460.0,0.00017633,2]
[372864057,1752783048005,-460.0,0.00017633,2]
[372864059,1752783048014,-414.14,0.00017633,2]
[372864061,1752783048024,-971.13,0.00017633,2]
[372864063,1752783048034,-460.0,0.00017633,2]
[372864065,1752783048045,-460.0,0.00017633,2]
[372864067,1752783048055,-460.0,0.00017633,2]
[372864069,1752783048064,-460.0,0.00017633,2]
[372864071,1752783048074,-460.0,0.00017634,2]
[372864073,1752783048083,-460.0,0.00017634,2]
[372864075,1752783048093,-500.0,0.00017634,2]
[372864077,1752783048106,-500.0,0.00017724,2]
[372864079,1752783048116,-500.0,0.00017808,2]
[372864081,1752783048126,-160.0,0.00017836,2]
[372864083,1752783048136,-160.0,0.00017836,2]
[372864085,1752783048146,-160.0,0.00017836,2]
[372864087,1752783048156,-839.15451687,0.00017836,2]
[372864089,1752783048166,-214.44804168,0.00017836,2]
[372864091,1752783048176,-12607.95677342,0.00017836,2]
[372864093,1752783048185,-230.85589339,0.00017836,2]
[372864095,1752783048195,-525.67742785,0.00017836,2]
[372864097,1752783048204,-215.59244943,0.00017836,2]
[372864099,1752783048214,-476.16111942,0.00017836,2]
[372864101,1752783048223,-160.0,0.00017836,2]
[372864103,1752783048234,-160.0,0.00017836,2]
[372864105,1752783048243,-1446.36,0.00017897,3]
[372864107,1752783048254,-723.18,0.00017897,3]
[372864109,1752783048263,-361.6,0.00017897,3]
[372864111,1752783048273,-2892.74,0.00017898,3]
[372864113,1752783048282,-442.64017846,0.000179,2]
[372864115,1752783048291,-460.0,0.00017904,2]
[372864117,1752783048300,-791.06,0.00017904,2]
[372864119,1752783048310,-932.7,0.00017904,2]
[372864121,1752783048319,-460.0,0.00017904,2]
[372864123,1752783048329,-460.0,0.00017904,2]
[372864125,1752783048339,-514.11,0.00017904,2]
[372864127,1752783048352,-460.0,0.00017904,2]
[372864129,1752783048362,-460.0,0.00017904,2]
[372864131,1752783048372,-460.0,0.00017904,2]
[372864133,1752783048382,-460.0,0.00017904,2]
[372864135,1752783048392,-240.0,0.00017905,2]
[372864137,1752783048402,-460.0,0.00017905,2]
[372864139,1752783048412,-460.0,0.00017905,2]
[372864141,1752783048423,-460.0,0.00017905,2]
[372864143,1752783048433,-461.97,0.00017905,2]
[372864145,1752783048443,-460.0,0.00017905,2]
[372864147,1752783048453,-155.16,0.00017905,2]
[372864149,1752783048462,-460.0,0.00017905,2]
[372864151,1752783048472,-744.42,0.00017905,2]
[372864153,1752783048481,-460.0,0.00017905,2]
[372864155,1752783048491,-460.0,0.00017905,2]
[372864157,1752783048501,-460.0,0.00017905,2]
[372864159,1752783048510,-468.3,0.00017905,2]
[372864161,1752783048520,-460.0,0.00017905,2]
[372864163,1752783048530,-592.57,0.00017906,2]
[372864165,1752783048541,-460.0,0.00017906,2]
[372864167,1752783048551,-460.0,0.00017906,2]
[372864169,1752783048561,-460.0,0.00017906,2]
[372864171,1752783048570,-1085.64,0.00017906,2]
[372864173,1752783048579,-505.45,0.00017906,2]
[372864175,1752783048589,-728.0,0.00017907,2]
[372864176,1752783048601,-500.0,0.00017907,2]
[372864178,1752783048611,-460.0,0.00017907,2]
[372864181,1752783048621,-508.61,0.00017907,2]
[372864182,1752783048631,-460.0,0.00017907,2]
[372864184,1752783048641,-460.0,0.00017907,2]
[372864187,1752783048651,-460.0,0.00017907,2]
[372864188,1752783048661,-971.13,0.00017907,2]
[372864190,1752783048670,-460.0,0.00017907,2]
[372864192,1752783048679,-460.0,0.00017907,2]
[372864195,1752783048689,-460.0,0.00017907,2]
[372864208,1752783048813,-460.0,0.00017907,2]
[372864210,1752783048823,-597.24144798,0.00017908,2]
[372864212,1752783048833,-460.0,0.00017908,2]
[372864214,1752783048844,-500.0,0.00017908,2]
[372864216,1752783048857,-500.0,0.0001791,2]
[372864218,1752783048866,-500.0,0.00017938,2]
[372864220,1752783048879,-420.0,0.00018065,2]
[372864222,1752783048888,-1680.0,0.0001815,2]
[372864224,1752783048898,-442.64017824,0.00018176,2]
[372864226,1752783048908,-432.16,0.00018178,2]
[372864228,1752783048918,-573.18,0.00018178,2]
[372864230,1752783048928,-791.06,0.00018178,2]
[372864232,1752783048937,-932.7,0.00018178,2]
[372864234,1752783048947,-500.0,0.00018178,2]
[372864236,1752783048957,-460.0,0.00018178,2]
[372864238,1752783048967,-460.0,0.00018178,2]
[372864240,1752783048976,-514.11,0.00018178,2]
[372864242,1752783048986,-460.0,0.00018178,2]
[372864244,1752783048995,-460.0,0.00018178,2]
[372864246,1752783049005,-151.0,0.00018178,2]
[372864248,1752783049015,-460.0,0.00018178,2]
[372864250,1752783049025,-460.0,0.00018178,2]
[372864252,1752783049035,-151.0,0.00018178,2]
[372864254,1752783049046,-476.16111942,0.00018179,3]
[372864256,1752783049055,-214.44804168,0.00018179,3]
[372864258,1752783049065,-12607.95677342,0.00018179,3]
[372864260,1752783049074,-595.35,0.00018179,2]
[372864262,1752783049084,-460.0,0.00018179,2]
[372864264,1752783049094,-460.0,0.00018179,2]
[372864266,1752783049107,-460.0,0.00018179,2]
[372864267,1752783049116,-460.0,0.00018179,2]
[372864269,1752783049126,-744.42,0.00018179,2]
[372864270,1752783049135,-460.0,0.00018179,2]
[372864271,1752783049145,-151.0,0.00018179,2]
[372864272,1752783049155,-460.0,0.00018179,2]
[372864273,1752783049164,-460.0,0.00018179,2]
[372864274,1752783049174,-460.0,0.00018179,2]
[372864275,1752783049184,-592.57,0.0001818,2]
[372864276,1752783049193,-460.0,0.0001818,2]
[372864277,1752783049203,-460.0,0.0001818,2]
[372864278,1752783049213,-460.0,0.0001818,2]
[372864279,1752783049223,-1085.64,0.0001818,2]
[372864280,1752783049233,-505.45,0.0001818,2]
[372864281,1752783049243,-728.0,0.00018181,2]
[372864282,1752783049252,-500.0,0.00018181,2]
[372864283,1752783049262,-460.0,0.00018181,2]
[372864284,1752783049271,-508.61,0.00018181,2]
[372864285,1752783049281,-460.0,0.00018181,2]
[372864286,1752783049291,-460.0,0.00018181,2]
[372864287,1752783049300,-460.0,0.00018181,2]
[372864288,1752783049310,-971.13,0.00018181,2]
[372864289,1752783049319,-460.0,0.00018181,2]
[372864290,1752783049329,-460.0,0.00018181,2]
[372864291,1752783049339,-460.0,0.00018181,2]
[372864292,1752783049350,-460.0,0.00018181,2]
[372864293,1752783049360,-199.20341551,0.00018182,2]
[372864294,1752783049370,-500.0,0.00018187,2]
[372864295,1752783049379,-686.88,0.00018447,3]
[372864296,1752783049388,-442.64017824,0.00018452,2]
[372864297,1752783049398,-791.06,0.00018452,2]
[372864298,1752783049409,-932.7,0.00018452,2]
[372864299,1752783049419,-460.0,0.00018452,2]
[372864300,1752783049428,-460.0,0.00018452,2]
[372864301,1752783049438,-514.11,0.00018452,2]
[372864302,1752783049447,-460.0,0.00018452,2]
[372864303,1752783049457,-303.29526926,0.00018452,2]
[372864304,1752783049466,-460.0,0.00018452,2]
[372864305,1752783049475,-460.0,0.00018452,2]
[372864306,1752783049485,-460.0,0.00018453,2]
[372864307,1752783049493,-592.57,0.00018453,2]
[372864308,1752783049502,-382.65739746,0.00018453,2]
[372864309,1752783049513,-460.0,0.00018453,2]
[372864310,1752783049524,-460.0,0.00018453,2]
[372864311,1752783049533,-460.0,0.00018453,2]
[372864312,1752783049542,-460.0,0.00018453,2]
[372864313,1752783049552,-744.42,0.00018453,2]
[372864314,1752783049561,-151.0,0.00018453,2]
[372864315,1752783049570,-460.0,0.00018453,2]
[372864316,1752783049581,-151.0,0.00018453,2]
[372864317,1752783049590,-460.0,0.00018453,2]
[372864318,1752783049600,-460.0,0.00018453,2]
[372864319,1752783049610,-1085.64,0.00018453,2]
[372864320,1752783049619,-460.0,0.00018453,2]
[372864321,1752783049628,-151.0,0.00018453,2]
[372864322,1752783049638,-151.0,0.00018453,2]
[372864323,1752783049648,-505.45,0.00018453,2]
[372864324,1752783049657,-728.0,0.00018455,2]
[372864325,1752783049667,-500.0,0.00018455,2]
[372864326,1752783049676,-189.53,0.00018455,2]
[372864327,1752783049686,-508.61,0.00018455,2]
[372864328,1752783049695,-460.0,0.00018455,2]
[372864329,1752783049704,-460.0,0.00018455,2]
[372864330,1752783049714,-500.0,0.00018455,2]
[372864331,1752783049724,-460.0,0.00018455,2]
[372864332,1752783049733,-971.13,0.00018455,2]
[372864333,1752783049742,-460.0,0.00018455,2]
[372864334,1752783049752,-460.0,0.00018455,2]
[372864335,1752783049762,-460.0,0.00018455,2]
[372864336,1752783049772,-460.0,0.00018455,2]
[372864337,1752783049782,-2859.67937161,0.00018558,2]
[372864338,1752783049795,-791.06,0.00018726,2]
[372864339,1752783049805,-932.7,0.00018726,2]
[372864340,1752783049814,-460.0,0.00018726,2]
[372864341,1752783049823,-460.0,0.00018726,2]
[372864342,1752783049833,-514.11,0.00018726,2]
[372864343,1752783049842,-460.0,0.00018726,2]
[372864344,1752783049854,-460.0,0.00018726,2]
[372864345,1752783049863,-460.0,0.00018726,2]
[372864346,1752783049873,-460.0,0.00018727,2]
[372864347,1752783049882,-592.57,0.00018727,2]
[372864348,1752783049891,-460.0,0.00018727,2]
[372864349,1752783049900,-356.11,0.00018727,2]
[372864350,1752783049910,-460.0,0.00018727,2]
[372864351,1752783049920,-460.0,0.00018727,2]
[372864352,1752783049929,-744.42,0.00018727,2]
[372864353,1752783049939,-460.0,0.00018727,2]
[372864354,1752783049948,-460.0,0.00018727,2]
[372864355,1752783049958,-269.43,0.00018727,2]
[372864356,1752783049967,-1085.64,0.00018727,2]
[372864357,1752783049976,-545.28,0.00018727,2]
[372864358,1752783049986,-505.45,0.00018727,2]
[372864359,1752783049995,-442.64017824,0.00018728,2]
[372864360,1752783050004,-500.0,0.00018728,2]
[372864361,1752783050014,-728.0,0.00018729,2]
[372864362,1752783050023,-500.0,0.00018729,2]
[372864363,1752783050033,-508.61,0.00018729,2]
[372864364,1752783050043,-460.0,0.00018729,2]
[372864365,1752783050052,-460.0,0.00018729,2]
[372864366,1752783050062,-460.0,0.00018729,2]
[372864367,1752783050072,-971.13,0.00018729,2]
[372864368,1752783050081,-460.0,0.00018729,2]
[372864369,1752783050090,-460.0,0.00018729,2]
[372864370,1752783050102,-460.0,0.00018729,2]
[372864371,1752783050112,-460.0,0.00018729,2]
[372864372,1752783050121,-791.06,0.00019,2]
[372864373,1752783050131,-932.7,0.00019,2]
[372864374,1752783050141,-460.0,0.00019,2]
[372864375,1752783050152,-460.0,0.00019,2]
[372864376,1752783050162,-514.11,0.00019,2]
[372864377,1752783050171,-460.0,0.00019,2]
[372864378,1752783050180,-460.0,0.00019,2]
[372864379,1752783050189,-460.0,0.00019,2]
[372864380,1752783050199,-460.0,0.00019001,2]
[372864381,1752783050208,-592.57,0.00019001,2]
[372864382,1752783050218,-460.0,0.00019001,2]
[372864383,1752783050228,-460.0,0.00019001,2]
[372864385,1752783050237,-460.0,0.00019001,2]
[372864386,1752783050247,-744.42,0.00019001,2]
[372864387,1752783050256,-460.0,0.00019001,2]
[372864388,1752783050266,-460.0,0.00019001,2]
[372864389,1752783050275,-1085.64,0.00019001,2]
[372864391,1752783050284,-505.45,0.00019001,2]
[372864392,1752783050294,-728.0,0.00019003,2]
[372864393,1752783050303,-500.0,0.00019003,2]
[372864394,1752783050313,-508.61,0.00019003,2]
[372864395,1752783050323,-460.0,0.00019003,2]
[372864396,1752783050333,-460.0,0.00019003,2]
[372864397,1752783050344,-525.93555785,0.00019003,2]
[372864398,1752783050365,-460.0,0.00019003,2]
[372864399,1752783050377,-971.13,0.00019003,2]
[372864400,1752783050387,-460.0,0.00019003,2]
[372864401,1752783050398,-460.0,0.00019003,2]
[372864402,1752783050408,-460.0,0.00019003,2]
[372864404,1752783050418,-442.64017824,0.00019003,2]
[372864405,1752783050428,-151.0,0.00019004,2]
[372864406,1752783050438,-151.0,0.00019004,2]
[372864407,1752783050448,-151.0,0.00019004,2]
[372864408,1752783050459,-151.0,0.00019004,2]
[372864409,1752783050470,-151.0,0.00019004,2]
[372864410,1752783050480,-151.0,0.00019004,2]
[372864411,1752783050491,-151.0,0.00019004,2]
[372864412,1752783050501,-180.153112,0.00019004,2]
[372864413,1752783050511,-180.153112,0.00019004,2]
[372864414,1752783050521,-179.91004498,0.00019023,2]
[372864415,1752783050530,-207.4,0.00019172,2]
[372864416,1752783050539,-151.0,0.00019172,2]
[372864417,1752783050548,-151.0,0.00019172,2]
[372864418,1752783050558,-151.0,0.00019172,2]
[372864419,1752783050569,-151.0,0.00019172,2]
[372864420,1752783050579,-151.0,0.00019172,2]
[372864421,1752783050588,-151.0,0.00019172,2]
[372864422,1752783050597,-151.0,0.00019172,2]
[372864423,1752783050611,-151.0,0.00019172,2]
[372864424,1752783050621,-151.0,0.00019172,2]
[372864425,1752783050630,-151.0,0.00019172,2]
[372864426,1752783050639,-151.0,0.00019172,2]
[372864427,1752783050649,-151.0,0.00019172,2]
[372864428,1752783050658,-151.0,0.00019172,2]
[372864429,1752783050667,-151.0,0.00019172,2]
[372864430,1752783050677,-151.0,0.00019172,2]
[372864431,1752783050686,-151.0,0.00019172,2]
[372864432,1752783050695,-151.0,0.00019172,2]
[372864433,1752783050704,-151.0,0.00019172,2]
[372864434,1752783050713,-151.0,0.00019172,2]
[372864435,1752783050723,-151.0,0.00019172,2]
[372864436,1752783050733,-25000.0,0.00019172,2]
[372864437,1752783050742,-20607.6315549,0.00019172,2]
[372864438,1752783050751,-152.200087,0.00019172,2]
[372864439,1752783050760,-151.0,0.00019172,2]
[372864440,1752783050769,-151.272782,0.00019172,2]
[372864441,1752783050781,-330.674341,0.00019178,2]
[372864442,1752783050791,-666.0,0.00019178,2]
[372864443,1752783050801,-791.06,0.00019274,2]
[372864444,1752783050812,-932.7,0.00019274,2]
[372864445,1752783050823,-609.02174892,0.00019274,2]
[372864446,1752783050832,-460.0,0.00019274,2]
[372864447,1752783050842,-514.11,0.00019274,2]
[372864448,1752783050854,-460.0,0.00019274,2]
[372864449,1752783050865,-460.0,0.00019274,2]
[372864450,1752783050874,-460.0,0.00019274,2]
[372864451,1752783050885,-592.57,0.00019275,2]
[372864452,1752783050895,-460.0,0.00019275,2]
[372864453,1752783050904,-460.0,0.00019275,2]
[372864454,1752783050913,-460.0,0.00019275,2]
[372864455,1752783050923,-744.42,0.00019275,2]
[372864456,1752783050932,-460.0,0.00019275,2]
[372864457,1752783050942,-460.0,0.00019275,2]
[372864458,1752783050953,-1085.64,0.00019275,2]
[372864459,1752783050963,-505.45,0.00019275,2]
[372864460,1752783050973,-508.61,0.00019276,2]
[372864462,1752783050983,-151.0,0.00019276,2]
[372864463,1752783050992,-151.0,0.00019276,2]
[372864464,1752783051002,-151.0,0.00019276,2]
[372864465,1752783051011,-151.0,0.00019276,2]
[372864466,1752783051021,-728.0,0.00019277,2]
[372864467,1752783051031,-500.0,0.00019277,2]
[372864468,1752783051040,-385.988218,0.00019277,2]
[372864469,1752783051050,-385.988218,0.00019277,2]
[372864470,1752783051059,-460.0,0.00019277,2]
[372864471,1752783051068,-460.0,0.00019277,2]
[372864472,1752783051078,-971.13,0.00019277,2]
[372864473,1752783051088,-460.0,0.00019277,2]
[372864474,1752783051097,-460.0,0.00019277,2]
[372864475,1752783051110,-460.0,0.00019277,2]
[372864476,1752783051119,-442.64017824,0.00019279,2]
[372864477,1752783051129,-565.76619946,0.00019333,2]
[372864478,1752783051138,-500.0,0.00019354,2]
[372864479,1752783051148,-151.0,0.00019436,2]
[372864480,1752783051157,-151.0,0.00019436,2]
[372864481,1752783051167,-218.877199,0.00019436,2]
[372864482,1752783051176,-218.877199,0.00019436,2]
[372864483,1752783051185,-151.0,0.00019436,2]
[372864484,1752783051194,-151.0,0.00019436,2]
[372864485,1752783051203,-968.0,0.00019513,2]
[372864486,1752783051212,-407.0,0.00019513,2]
[372864487,1752783051221,-791.06,0.00019548,2]
[372864488,1752783051231,-932.7,0.00019548,2]
[372864489,1752783051240,-460.0,0.00019548,2]
[372864490,1752783051249,-514.11,0.00019548,2]
[372864491,1752783051259,-460.0,0.00019548,2]
[372864492,1752783051268,-460.0,0.00019548,2]
[372864493,1752783051278,-460.0,0.00019548,2]
[372864494,1752783051287,-592.57,0.00019549,2]
[372864495,1752783051296,-460.0,0.00019549,2]
[372864496,1752783051306,-531.8280298,0.00019549,2]
[372864497,1752783051315,-501.35430456,0.00019549,2]
[372864498,1752783051324,-744.42,0.00019549,2]
[372864499,1752783051333,-460.0,0.00019549,2]
[372864500,1752783051343,-460.0,0.00019549,2]
[372864501,1752783051357,-1085.64,0.00019549,2]
[372864502,1752783051367,-505.45,0.00019549,2]
[372864503,1752783051376,-508.61,0.0001955,2]
[372864504,1752783051386,-728.0,0.00019551,2]
[372864505,1752783051395,-500.0,0.00019551,2]
[372864506,1752783051405,-266.47,0.00019551,2]
[372864507,1752783051414,-971.13,0.00019551,2]
[372864508,1752783051423,-460.0,0.00019551,2]
[372864509,1752783051433,-460.0,0.00019551,2]
[372864510,1752783051442,-460.0,0.00019551,2]
[372864511,1752783051451,-442.64017824,0.00019555,2]
[372864512,1752783051464,-500.0,0.00019571,2]
[372864513,1752783051474,-500.0,0.00019571,2]
[372864514,1752783051483,-500.0,0.00019587,2]
[372864515,1752783051492,-488.74686382,0.00019587,2]
[372864516,1752783051502,-500.0,0.00019587,2]
[372864517,1752783051512,-587.0,0.00019741,2]
[372864518,1752783051521,-791.06,0.00019822,2]
[372864519,1752783051531,-932.7,0.00019822,2]
[372864520,1752783051540,-460.0,0.00019822,2]
[372864521,1752783051549,-514.11,0.00019822,2]
[372864522,1752783051559,-460.0,0.00019822,2]
[372864523,1752783051568,-460.0,0.00019822,2]
[372864524,1752783051578,-277.39554543,0.00019822,2]
[372864525,1752783051587,-592.57,0.00019823,2]
[372864526,1752783051596,-460.0,0.00019823,2]
[372864527,1752783051608,-744.42,0.00019823,2]
[372864528,1752783051617,-581.56,0.00019823,2]
[372864529,1752783051627,-460.0,0.00019823,2]
[372864530,1752783051636,-1085.64,0.00019823,2]
[372864531,1752783051645,-505.45,0.00019823,2]
[372864532,1752783051761,-151.0,0.00019824,2]
[372864533,1752783051771,-151.0,0.00019824,2]
[372864534,1752783051783,-508.61,0.00019824,2]
[372864535,1752783051793,-728.0,0.00019825,2]
[372864536,1752783051802,-500.0,0.00019825,2]
[372864537,1752783051812,-971.13,0.00019825,2]
[372864538,1752783051822,-460.0,0.00019825,2]
[372864539,1752783051832,-460.0,0.00019825,2]
[372864540,1752783051841,-460.0,0.00019825,2]
[372864541,1752783051854,-442.64017824,0.00019831,2]
[372864542,1752783051864,-999.50024988,0.00019892,2]
[372864543,1752783051875,-500.0,0.00019892,2]
[372864544,1752783051886,-180.153112,0.00019895,2]
[372864545,1752783051896,-180.153112,0.00019895,2]
[372864546,1752783051906,-500.0,0.00019902,2]
[372864547,1752783051915,-1444.0,0.00019932,2]
[372864548,1752783051924,-218.279066,0.0002004,2]